fUSD/lending_fUSD_20240318
["ID","MTS","AMOUNT","RATE_DAILY","PERIOD"]
[319433855,1710736312391,-589.6,0.00032328,4]
[319433856,1710736312400,-500.0,0.00032328,4]
[319433857,1710736312409,-500.0,0.00032328,4]
[319433858,1710736312418,-633.04,0.00032328,4]
[319433859,1710736312427,-512.73,0.00032328,4]
[319433860,1710736312436,-774.64,0.00032328,4]
[319433861,1710736312445,-1524.04,0.00032328,4]
[319433862,1710736312455,-1586.83,0.00032328,4]
[319433863,1710736312465,-1898.65,0.00032328,4]
[319433864,1710736312474,-500.0,0.00032328,4]
[319433865,1710736312483,-500.0,0.00032328,4]
[319433866,1710736312493,-500.0,0.00032328,4]
[319433867,1710736312502,-833.34,0.00032328,4]
[319433868,1710736312517,-1329.2,0.00032328,4]
[319433869,1710736312527,-500.0,0.00032328,4]
[319433870,1710736312536,-501.93,0.00032328,4]
[319433871,1710736312546,-574.74,0.00032328,4]
[319433872,1710736312555,-500.0,0.00032328,4]
[319433873,1710736312565,-500.0,0.00032328,4]
[319433874,1710736312574,-899.79,0.00032328,4]
[319433875,1710736312584,-500.0,0.00032328,4]
[319433876,1710736312593,-836.63,0.00032328,4]
[319433877,1710736312603,-663.74,0.00032328,4]
[319433878,1710736312613,-1143.03,0.00032328,4]
[319433879,1710736312623,-500.0,0.00032328,4]
[319433880,1710736312631,-1917.2,0.00032328,4]
[319433881,1710736312641,-1716.33,0.00032328,4]
[319433882,1710736312651,-1304.54,0.00032328,4]
[319433883,1710736312660,-500.0,0.00032328,4]
[319433884,1710736312669,-705.47,0.00032328,4]
[319433885,1710736312678,-500.0,0.00032328,4]
[319433886,1710736312687,-794.56,0.00032328,4]
[319433887,1710736312696,-500.0,0.00032328,4]
[319433888,1710736312706,-588.98,0.00032328,4]
[319433889,1710736312715,-560.65,0.00032328,4]
[319433890,1710736312725,-2333.6,0.00032328,4]
[319433891,1710736312734,-1061.17,0.00032328,4]
[319433892,1710736312746,-758.7,0.00032328,4]
[319433893,1710736312758,-500.0,0.00032328,4]
[319433894,1710736312768,-500.0,0.00032328,4]
[319433895,1710736312778,-1095.12,0.00032328,4]
[319433896,1710736312789,-500.0,0.00032328,4]
[319433897,1710736312798,-2145.95,0.00032328,4]
[319433898,1710736312808,-1627.27,0.00032328,4]
[319433899,1710736312817,-500.0,0.00032328,4]
[319433900,1710736312828,-500.0,0.00032328,4]
[319433901,1710736312839,-500.0,0.00032328,4]
[319433902,1710736312849,-2012.26,0.00032328,4]
[319433903,1710736312858,-1352.76,0.00032328,4]
[319433904,1710736312867,-500.0,0.00032328,2]
[319433905,1710736312877,-537.95,0.00032328,4]
[319433906,1710736312887,-500.0,0.00032328,4]
[319433907,1710736312896,-2747.25,0.00032328,4]
[319433908,1710736312906,-606.33,0.00032328,4]
[319433909,1710736312916,-500.0,0.00032328,4]
[319433910,1710736312925,-500.0,0.00032328,4]
[319433911,1710736312935,-500.0,0.00032328,4]
[319433912,1710736312944,-500.0,0.00032328,4]
[319433913,1710736312953,-500.0,0.00032328,4]
[319433914,1710736312963,-554.01,0.00032328,4]
[319433915,1710736312972,-807.58,0.00032328,4]
[319433916,1710736312982,-2956.82,0.00032328,4]
[319433917,1710736312991,-500.0,0.00032328,4]
[319433918,1710736313000,-500.0,0.00032328,4]
[319433919,1710736313012,-500.0,0.00032328,4]
[319433920,1710736313021,-1607.18,0.00032328,4]
[319433921,1710736313031,-500.0,0.00032328,4]
[319433922,1710736313040,-1221.54,0.00032328,4]
[319433923,1710736313050,-500.0,0.00032328,4]
[319433924,1710736313060,-1838.23,0.00032328,4]
[319433925,1710736313070,-1026.01,0.00032328,4]
[319433926,1710736313079,-180.59263047,0.00032328,4]
[319433927,1710736313089,-842.1,0.00032328,4]
[319433928,1710736313098,-512.31,0.00032328,4]
[319433929,1710736313107,-500.0,0.00032328,4]
[319433930,1710736313116,-831.26,0.00032328,4]
[319433931,1710736313125,-1157.32,0.00032328,4]
[319433932,1710736313135,-1448.23,0.00032328,4]
[319433933,1710736313144,-500.0,0.00032328,4]
[319433934,1710736313153,-556.38,0.00032328,4]
[319433935,1710736313163,-500.0,0.00032328,4]
[319433936,1710736313173,-1287.24,0.00032328,4]
[319433937,1710736313183,-500.0,0.00032328,4]
[319433938,1710736313192,-1436.69,0.00032328,4]
[319433939,1710736313203,-1335.54,0.00032328,4]
[319433940,1710736313212,-500.0,0.00032328,4]
[319433941,1710736313222,-1968.76,0.00032328,4]
[319433942,1710736313232,-799.94,0.00032328,4]
[319433943,1710736313241,-1597.09,0.00032328,4]
[319433944,1710736313250,-500.0,0.00032328,4]
[319433945,1710736313262,-500.0,0.00032328,4]
[319433946,1710736313271,-500.0,0.00032328,4]
[319433947,1710736313281,-632.08,0.00032328,4]
[319433948,1710736313291,-681.46,0.00032328,4]
[319433949,1710736313301,-1138.91,0.00032328,4]
[319433950,1710736313310,-1427.1,0.00032328,4]
[319433951,1710736313320,-809.76,0.00032328,4]
[319433952,1710736313329,-500.0,0.00032328,4]
[319433953,1710736313338,-1229.86,0.00032328,4]
[319433954,1710736313347,-691.68,0.00032328,4]
[319433955,1710736313356,-500.0,0.00032328,4]
[319433956,1710736313366,-2635.68,0.00032328,4]
[319433957,1710736313374,-500.0,0.00032328,4]
[319433958,1710736313383,-500.0,0.00032328,4]
[319433959,1710736313393,-500.0,0.00032328,4]
[319433960,1710736313402,-500.0,0.00032328,4]
[319433961,1710736313411,-788.73,0.00032328,4]
[319433962,1710736313421,-500.0,0.00032328,4]
[319433963,1710736313430,-500.0,0.00032328,4]
[319433964,1710736313439,-500.0,0.00032328,4]
[319433965,1710736313448,-168.47079519,0.00032328,4]
[319433966,1710736313458,-508.5447249,0.00032328,4]
[319433967,1710736313467,-2115.38,0.00032328,4]
[319433968,1710736313476,-500.0,0.00032328,4]
[319433969,1710736313486,-1520.72,0.00032328,4]
[319433970,1710736313495,-1607.09,0.00032328,4]
[319433971,1710736313504,-500.0,0.00032328,4]
[319433972,1710736313515,-500.0,0.00032328,4]
[319433973,1710736313524,-1832.55,0.00032328,4]
[319433974,1710736313533,-500.0,0.00032328,4]
[319433975,1710736313543,-824.57,0.00032328,4]
[319433976,1710736313553,-519.78353764,0.00032328,4]
[319433977,1710736313562,-1581.71,0.00032328,4]
[319433978,1710736313571,-500.0,0.00032328,4]
[319433979,1710736313580,-583.42,0.00032328,4]
[319433980,1710736313590,-1212.73,0.00032328,4]
[319433981,1710736313599,-1404.3,0.00032328,4]
[319433982,1710736313608,-24025.87,0.00032328,4]
[319433983,1710736313617,-500.0,0.00032328,4]
[319433984,1710736313626,-2851.25,0.00032328,4]
[319433985,1710736313635,-2546.72,0.00032328,4]
[319433986,1710736313644,-522.01986195,0.00032328,4]
[319433987,1710736313653,-2287.3,0.00032328,4]
[319433988,1710736313662,-500.0,0.00032328,4]
[319433989,1710736313671,-500.0,0.00032328,4]
[319433990,1710736313680,-647.58,0.00032328,4]
[319433991,1710736313690,-585.33,0.00032328,4]
[319433992,1710736313699,-1053.54,0.00032328,4]
[319433993,1710736313708,-500.0,0.00032328,4]
[319433994,1710736313717,-1503.64,0.00032328,4]
[319433995,1710736313727,-1183.08,0.00032328,4]
[319433996,1710736313737,-500.0,0.00032328,4]
[319433997,1710736313750,-500.0,0.00032328,4]
[319433998,1710736313762,-2122.6,0.00032328,4]
[319433999,1710736313771,-554.14,0.00032328,4]
[319434000,1710736313780,-500.0,0.00032328,4]
[319434001,1710736313791,-354.23621345,0.00032328,4]
[319434002,1710736313800,-513.85,0.00032328,4]
[319434003,1710736313810,-1088.26,0.00032328,4]
[319434004,1710736313819,-1355.29,0.00032328,4]
[319434005,1710736313829,-1081.54,0.00032328,4]
[319434006,1710736313840,-602.31,0.00032328,4]
[319434007,1710736313849,-500.0,0.00032328,4]
[319434008,1710736313858,-16800.01,0.00032328,4]
[319434009,1710736313867,-500.0,0.00032328,4]
[319434010,1710736313877,-732.67,0.00032328,4]
[319434011,1710736313886,-454.52210802,0.00032328,4]
[319434012,1710736313896,-500.0,0.00032328,4]
[319434013,1710736313905,-500.0,0.00032328,4]
[319434014,1710736313914,-500.0,0.00032328,4]
[319434015,1710736313923,-500.0,0.00032328,4]
[319434016,1710736313933,-742.96,0.00032328,4]
[319434017,1710736313942,-875.28,0.00032328,4]
[319434018,1710736313952,-388.54875666,0.00032328,4]
[319434019,1710736313961,-500.0,0.00032328,4]
[319434020,1710736313971,-500.0,0.00032328,4]
[319434021,1710736313980,-1382.05,0.00032328,4]
[319434022,1710736313990,-500.0,0.00032328,4]
[319434023,1710736313999,-9617.26,0.00032328,4]
[319434024,1710736314010,-632.75,0.00032328,4]
[319434025,1710736314020,-523.3,0.00032328,4]
[319434026,1710736314030,-500.0,0.00032328,4]
[319434027,1710736314039,-500.0,0.00032328,4]
[319434028,1710736314049,-9955.07,0.00032328,4]
[319434029,1710736314058,-1242.28,0.00032328,4]
[319434030,1710736314068,-500.0,0.00032328,4]
[319434031,1710736314078,-815.39,0.00032328,4]
[319434032,1710736314088,-606.68,0.00032328,4]
[319434033,1710736314099,-2827.35,0.00032328,4]
[319434034,1710736314109,-500.0,0.00032328,4]
[319434035,1710736314118,-584.4,0.00032328,4]
[319434036,1710736314128,-500.0,0.00032328,4]
[319434037,1710736314138,-500.0,0.00032328,4]
[319434038,1710736314148,-2844.9,0.00032328,4]
[319434039,1710736314157,-500.0,0.00032328,4]
[319434040,1710736314167,-918.65,0.00032328,4]
[319434041,1710736314177,-2329.09,0.00032328,4]
[319434042,1710736314187,-500.0,0.00032328,4]
[319434043,1710736314196,-2657.41,0.00032328,4]
[319434044,1710736314206,-500.0,0.00032328,4]
[319434045,1710736314215,-5715.22,0.00032328,4]
[319434046,1710736314225,-1178.39,0.00032328,4]
[319434047,1710736314234,-500.0,0.00032328,4]
[319434048,1710736314244,-500.0,0.00032328,4]
[319434049,1710736314253,-500.0,0.00032328,4]
[319434050,1710736314264,-1030.3,0.00032328,4]
[319434051,1710736314273,-7010.64,0.00032328,4]
[319434052,1710736314283,-500.0,0.00032328,4]
[319434053,1710736314292,-795.31,0.00032328,4]
[319434054,1710736314301,-464.20619602,0.00032328,4]
[319434055,1710736314311,-500.0,0.00032328,4]
[319434056,1710736314320,-647.9,0.00032328,4]
[319434057,1710736314330,-756.1,0.00032328,4]
[319434058,1710736314339,-500.0,0.00032328,4]
[319434059,1710736314348,-500.0,0.00032328,4]
[319434060,1710736314357,-500.0,0.00032328,4]
[319434061,1710736314366,-1213.71,0.00032328,4]
[319434062,1710736314375,-3112.49,0.00032328,4]
[319434063,1710736314384,-584.59338483,0.00032328,4]
[319434064,1710736314393,-16099.23,0.00032328,4]
[319434065,1710736314402,-1067.48,0.00032328,4]
[319434066,1710736314411,-1085.99,0.00032328,4]
[319434067,1710736314420,-500.0,0.00032328,4]
[319434068,1710736314429,-500.0,0.00032328,4]
[319434069,1710736314439,-425.29975617,0.00032328,4]
[319434070,1710736314447,-500.0,0.00032328,4]
[319434071,1710736314456,-7279.53,0.00032328,4]
[319434072,1710736314465,-3639.26,0.00032328,4]
[319434073,1710736314474,-4937.08,0.00032328,4]
[319434074,1710736314482,-367.46911735,0.00032328,4]
[319434075,1710736314491,-14656.9,0.00032328,4]
[319434076,1710736314500,-500.0,0.00032328,4]
[319434077,1710736314510,-500.0,0.00032328,4]
[319434078,1710736314519,-1119.07,0.00032328,4]
[319434079,1710736314529,-500.0,0.00032328,4]
[319434080,1710736314538,-714.97,0.00032328,4]
[319434081,1710736314547,-537.31591449,0.00032328,4]
[319434082,1710736314557,-500.0,0.00032328,4]
[319434083,1710736314566,-3778.15,0.00032328,4]
[319434084,1710736314575,-500.0,0.00032328,4]
[319434085,1710736314584,-2442.22,0.00032328,4]
[319434086,1710736314593,-915.55,0.00032328,4]
[319434087,1710736314602,-500.0,0.00032328,4]
[319434088,1710736314612,-2039.35,0.00032328,4]
[319434089,1710736314621,-500.0,0.00032328,4]
[319434090,1710736314630,-1590.31,0.00032328,4]
[319434091,1710736314639,-500.0,0.00032328,2]
[319434092,1710736314649,-500.0,0.00032328,4]
[319434093,1710736314658,-2078.76,0.00032328,4]
[319434094,1710736314667,-765.76,0.00032328,4]
[319434095,1710736314676,-2024.35,0.00032328,4]
[319434096,1710736314686,-500.0,0.00032328,4]
[319434097,1710736314695,-3546.12,0.00032328,4]
[319434098,1710736314704,-500.0,0.00032328,4]
[319434099,1710736314714,-150.0,0.00032329,2]
[319434100,1710736314723,-190.0,0.00032329,2]
[319434101,1710736314732,-376.98,0.00032416,2]
[319434102,1710736314745,-1199.99999901,0.00032428,14]
[319434103,1710736314754,-151.031811,0.00032498,5]
[319434104,1710736314763,-151.031811,0.00032498,4]
[319434105,1710736314773,-150.0,0.00032547,2]
[319434106,1710736314782,-245.90566,0.00032547,2]
[319434107,1710736314792,-400.0,0.0003257,2]
[319434108,1710736314801,-156.6381778,0.00032574,7]
[319434109,1710736314810,-381.85,0.0003259,2]
[319434110,1710736314819,-380.0,0.0003259,2]
[319434111,1710736314829,-380.0,0.0003259,2]
[319434112,1710736314839,-380.0,0.0003259,2]
[319434113,1710736314848,-380.0,0.0003259,2]
[319434114,1710736314858,-380.0,0.0003259,2]
[319434115,1710736314867,-380.0,0.0003259,2]
[319434116,1710736314876,-380.0,0.0003259,2]
[319434117,1710736314886,-329.26,0.0003259,2]
[319434118,1710736314896,-812.0,0.000326,21]
[319434119,1710736314905,-500.0,0.00032602,4]
[319434120,1710736314914,-500.0,0.00032602,4]
[319434121,1710736314924,-500.0,0.00032602,4]
[319434122,1710736314933,-453.44405498,0.00032602,4]
[319434123,1710736314943,-500.0,0.00032602,4]
[319434124,1710736314953,-500.0,0.00032602,4]
[319434125,1710736314962,-500.0,0.00032602,4]
[319434126,1710736315133,-597.78959963,0.00032602,4]
[319434127,1710736315142,-500.0,0.00032602,4]
[319434128,1710736315152,-500.0,0.00032602,4]
[319434129,1710736315161,-500.0,0.00032602,4]
[319434130,1710736315170,-500.0,0.00032602,4]
[319434131,1710736315179,-152.95931714,0.00032602,4]
[319434132,1710736315188,-500.0,0.00032602,4]
[319434133,1710736315198,-500.0,0.00032602,4]
[319434134,1710736315207,-500.0,0.00032602,4]
[319434135,1710736315216,-892.35,0.00032602,4]
[319434136,1710736315226,-588.99,0.00032602,4]
[319434137,1710736315235,-500.0,0.00032602,4]
[319434138,1710736315244,-555.86204575,0.00032602,4]
[319434139,1710736315254,-500.0,0.00032602,4]
[319434140,1710736315265,-500.0,0.00032602,4]
[319434141,1710736315274,-500.0,0.00032602,4]
[319434142,1710736315283,-500.0,0.00032602,4]
[319434143,1710736315293,-500.0,0.00032602,4]
[319434144,1710736315302,-500.0,0.00032602,4]
[319434145,1710736315311,-752.67,0.00032602,4]
[319434146,1710736315321,-500.0,0.00032602,4]
[319434147,1710736315330,-500.0,0.00032602,4]
[319434148,1710736315340,-500.0,0.00032602,4]
[319434149,1710736315350,-500.0,0.00032602,4]
[319434150,1710736315359,-500.0,0.00032602,4]
[319434151,1710736315369,-500.0,0.00032602,4]
[319434152,1710736315379,-500.0,0.00032602,4]
[319434153,1710736315388,-500.0,0.00032602,4]
[319434154,1710736315398,-500.0,0.00032602,4]
[319434155,1710736315407,-500.0,0.00032602,4]
[319434156,1710736315417,-869.9,0.00032602,4]
[319434157,1710736315426,-500.0,0.00032602,4]
[319434158,1710736315435,-1373.45,0.00032602,4]
[319434159,1710736315444,-536.23,0.00032602,4]
[319434160,1710736315453,-500.0,0.00032602,4]
[319434161,1710736315463,-500.0,0.00032602,4]
[319434162,1710736315472,-1105.28,0.00032602,4]
[319434163,1710736315482,-500.0,0.00032602,4]
[319434164,1710736315491,-500.0,0.00032602,4]
[319434165,1710736315500,-500.0,0.00032602,4]
[319434166,1710736315509,-500.0,0.00032602,4]
[319434167,1710736315519,-500.0,0.00032602,4]
[319434168,1710736315528,-500.0,0.00032602,4]
[319434169,1710736315536,-500.0,0.00032602,4]
[319434170,1710736315545,-622.18,0.00032602,4]
[319434171,1710736315554,-472.05235882,0.00032602,4]
[319434172,1710736315563,-500.0,0.00032602,4]
[319434173,1710736315572,-521.2552548,0.00032602,4]
[319434174,1710736315582,-502.98037679,0.00032602,4]
[319434175,1710736315591,-500.0,0.00032602,4]
[319434176,1710736315600,-500.0,0.00032602,4]
[319434177,1710736315609,-500.0,0.00032602,4]
[319434178,1710736315618,-500.0,0.00032602,4]
[319434179,1710736315627,-501.4,0.00032602,4]
[319434180,1710736315636,-2231.25,0.00032602,4]
[319434181,1710736315645,-500.0,0.00032602,4]
[319434182,1710736315654,-500.0,0.00032602,4]
[319434183,1710736315663,-410.40107255,0.00032602,4]
[319434184,1710736315672,-500.0,0.00032602,4]
[319434185,1710736315681,-735.9,0.00032602,4]
[319434186,1710736315691,-500.0,0.00032602,4]
[319434187,1710736315699,-500.0,0.00032602,4]
[319434188,1710736315708,-500.0,0.00032602,4]
[319434189,1710736315717,-500.0,0.00032602,4]
[319434190,1710736315727,-500.0,0.00032602,4]
[319434191,1710736315737,-500.0,0.00032602,4]
[319434192,1710736315746,-943.04,0.00032602,4]
[319434193,1710736315757,-500.0,0.00032602,4]
[319434194,1710736315768,-500.0,0.00032602,4]
[319434195,1710736315778,-500.0,0.00032602,4]
[319434196,1710736315787,-500.0,0.00032602,4]
[319434197,1710736315797,-500.0,0.00032602,4]
[319434198,1710736315806,-500.0,0.00032602,4]
[319434199,1710736315815,-503.91,0.00032602,4]
[319434200,1710736315824,-500.0,0.00032602,4]
[319434201,1710736315834,-500.0,0.00032602,4]
[319434202,1710736315844,-1566.14,0.00032602,4]
[319434203,1710736315853,-509.32621273,0.00032602,4]
[319434204,1710736315862,-500.0,0.00032602,4]
[319434205,1710736315871,-495.44902378,0.00032602,4]
[319434206,1710736315881,-500.0,0.00032602,4]
[319434207,1710736315890,-507.78,0.00032602,4]
[319434208,1710736315899,-594.38839379,0.00032602,4]
[319434209,1710736315908,-500.0,0.00032602,4]
[319434210,1710736315918,-500.0,0.00032602,4]
[319434211,1710736315927,-500.0,0.00032602,4]
[319434212,1710736315935,-500.0,0.00032602,4]
[319434213,1710736315945,-832.17,0.00032602,4]
[319434214,1710736315954,-500.0,0.00032602,4]
[319434215,1710736315963,-500.0,0.00032602,4]
[319434216,1710736315972,-500.0,0.00032602,4]
[319434217,1710736315981,-500.0,0.00032602,4]
[319434218,1710736315991,-1123.76,0.00032602,4]
[319434219,1710736316000,-600.34,0.00032602,4]
[319434220,1710736316010,-710.22,0.00032602,4]
[319434221,1710736316020,-500.0,0.00032602,4]
[319434222,1710736316029,-500.0,0.00032602,4]
[319434223,1710736316038,-1438.95,0.00032602,4]
[319434224,1710736316047,-1027.19,0.00032602,4]
[319434225,1710736316056,-500.0,0.00032602,4]
[319434226,1710736316065,-500.0,0.00032602,4]
[319434227,1710736316074,-624.55,0.00032602,4]
[319434228,1710736316082,-184.00435799,0.00032602,4]
[319434229,1710736316091,-500.0,0.00032602,4]
[319434230,1710736316100,-295.59482469,0.00032602,4]
[319434231,1710736316109,-595.77,0.00032602,4]
[319434232,1710736316118,-1826.25,0.00032602,4]
[319434233,1710736316127,-500.0,0.00032602,4]
[319434234,1710736316136,-931.82,0.00032602,4]
[319434235,1710736316145,-500.0,0.00032602,4]
[319434236,1710736316155,-2156.89,0.00032602,4]
[319434237,1710736316164,-626.3,0.00032602,4]
[319434238,1710736316173,-509.0494743,0.00032602,4]
[319434239,1710736316182,-500.0,0.00032602,4]
[319434240,1710736316192,-500.0,0.00032602,4]
[319434241,1710736316202,-2005.2,0.00032602,4]
[319434242,1710736316211,-500.0,0.00032602,4]
[319434243,1710736316220,-500.0,0.00032602,4]
[319434244,1710736316229,-2463.3,0.00032602,4]
[319434245,1710736316238,-500.0,0.00032602,4]
[319434246,1710736316247,-500.0,0.00032602,4]
[319434247,1710736316256,-500.0,0.00032602,4]
[319434248,1710736316266,-500.0,0.00032602,4]
[319434249,1710736316275,-2094.29,0.00032602,4]
[319434250,1710736316284,-911.56,0.00032602,4]
[319434251,1710736316293,-500.0,0.00032602,4]
[319434252,1710736316302,-2639.58,0.00032602,4]
[319434253,1710736316311,-500.0,0.00032602,4]
[319434254,1710736316320,-500.0,0.00032602,4]
[319434255,1710736316329,-500.0,0.00032602,4]
[319434256,1710736316338,-500.0,0.00032602,4]
[319434257,1710736316346,-3465.75,0.00032602,4]
[319434258,1710736316356,-523.09,0.00032602,4]
[319434259,1710736316365,-500.0,0.00032602,4]
[319434260,1710736316374,-500.0,0.00032602,4]
[319434261,1710736316382,-3439.16,0.00032602,4]
[319434262,1710736316391,-1239.79,0.00032602,4]
[319434263,1710736316400,-500.0,0.00032602,4]
[319434264,1710736316409,-865.02,0.00032602,4]
[319434265,1710736316418,-770.0,0.00032602,4]
[319434266,1710736316427,-500.0,0.00032602,4]
[319434267,1710736316436,-1050.75,0.00032602,4]
[319434268,1710736316446,-639.93,0.00032602,4]
[319434269,1710736316455,-3922.62,0.00032602,4]
[319434270,1710736316464,-500.0,0.00032602,4]
[319434271,1710736316473,-953.43,0.00032602,4]
[319434272,1710736316481,-611.87,0.00032602,4]
[319434273,1710736316490,-500.0,0.00032602,4]
[319434274,1710736316500,-798.65,0.00032602,4]
[319434275,1710736316509,-2710.57,0.00032602,4]
[319434276,1710736316520,-500.0,0.00032602,4]
[319434277,1710736316529,-2948.74,0.00032602,4]
[319434278,1710736316537,-500.0,0.00032602,4]
[319434279,1710736316546,-539.71,0.00032602,4]
[319434280,1710736316555,-500.0,0.00032602,4]
[319434281,1710736316564,-500.0,0.00032602,4]
[319434282,1710736316574,-500.0,0.00032602,4]
[319434283,1710736316582,-500.0,0.00032602,4]
[319434284,1710736316592,-500.0,0.00032602,4]
[319434285,1710736316601,-500.0,0.00032602,4]
[319434286,1710736316610,-1200.43,0.00032602,4]
[319434287,1710736316619,-468.01150956,0.00032602,4]
[319434288,1710736316629,-500.0,0.00032602,4]
[319434289,1710736316639,-500.0,0.00032602,4]
[319434290,1710736316647,-500.0,0.00032602,4]
[319434291,1710736316657,-500.0,0.00032602,4]
[319434292,1710736316665,-646.93,0.00032602,4]
[319434293,1710736316674,-593.8,0.00032602,4]
[319434294,1710736316683,-3040.38,0.00032602,4]
[319434295,1710736316693,-912.86,0.00032602,4]
[319434296,1710736316701,-521.56,0.00032602,4]
[319434297,1710736316711,-500.0,0.00032602,4]
[319434298,1710736316720,-500.0,0.00032602,4]
[319434299,1710736316729,-500.0,0.00032602,4]
[319434300,1710736316738,-2075.71,0.00032602,4]
[319434301,1710736316751,-1026.81,0.00032602,4]
[319434302,1710736316760,-788.56,0.00032602,4]
[319434303,1710736316770,-500.0,0.00032602,4]
[319434304,1710736316779,-500.0,0.00032602,4]
[319434305,1710736316789,-615.18,0.00032602,4]
[319434306,1710736316798,-500.0,0.00032602,4]
[319434307,1710736316806,-1506.09,0.00032602,4]
[319434308,1710736316815,-500.0,0.00032602,4]
[319434309,1710736316826,-500.0,0.00032602,4]
[319434310,1710736316836,-500.0,0.00032602,4]
[319434311,1710736316845,-1442.43,0.00032602,4]
[319434312,1710736316854,-500.0,0.00032602,4]
[319434313,1710736316862,-4584.29,0.00032602,4]
[319434314,1710736316872,-1419.83,0.00032602,4]
[319434315,1710736316881,-1416.16,0.00032602,4]
[319434316,1710736316889,-500.0,0.00032602,4]
[319434317,1710736316898,-1501.08,0.00032602,4]
[319434318,1710736316907,-500.0,0.00032602,4]
[319434319,1710736316916,-500.0,0.00032602,4]
[319434320,1710736316925,-1326.91,0.00032602,4]
[319434321,1710736316934,-500.0,0.00032602,4]
[319434322,1710736316944,-500.0,0.00032602,4]
[319434323,1710736316953,-1157.88,0.00032602,4]
[319434324,1710736316962,-500.0,0.00032602,4]
[319434325,1710736316971,-522.83,0.00032602,4]
[319434326,1710736316979,-1901.89,0.00032602,4]
[319434327,1710736316989,-884.27,0.00032602,4]
[319434328,1710736316998,-718.57,0.00032602,4]
[319434329,1710736317007,-500.0,0.00032602,4]
[319434330,1710736317016,-500.0,0.00032602,4]
[319434331,1710736317025,-500.0,0.00032602,4]
[319434332,1710736317035,-626.44,0.00032602,4]
[319434333,1710736317044,-1481.56,0.00032602,4]
[319434334,1710736317054,-820.19,0.00032602,4]
[319434335,1710736317063,-616.04,0.00032602,4]
[319434336,1710736317073,-661.6,0.00032602,4]
[319434337,1710736317082,-807.78,0.00032602,4]
[319434338,1710736317092,-576.56,0.00032602,4]
[319434339,1710736317102,-500.0,0.00032602,4]
[319434340,1710736317111,-500.0,0.00032602,4]
[319434341,1710736317121,-1258.08,0.00032602,4]
[319434342,1710736317130,-500.0,0.00032602,4]
[319434343,1710736317140,-922.75,0.00032602,4]
[319434344,1710736317149,-500.0,0.00032602,4]
[319434345,1710736317158,-500.0,0.00032602,4]
[319434346,1710736317167,-1859.01,0.00032602,4]
[319434347,1710736317177,-998.14,0.00032602,4]
[319434348,1710736317186,-712.78,0.00032602,4]
[319434349,1710736317195,-3134.02,0.00032602,4]
[319434350,1710736317205,-720.74,0.00032602,4]
[319434351,1710736317214,-835.55,0.00032602,4]
[319434352,1710736317223,-794.41,0.00032602,4]
[319434353,1710736317232,-3743.94,0.00032602,4]
[319434354,1710736317241,-500.0,0.00032602,4]